bitfinex/quotes_SOLUSD_20260211
["timestamp","ask_amount","ask_price","bid_price","bid_amount"]
[1770820313588,12.1449131,82.339,82.3,19.0642571]
[1770820313788,4.23940095,82.329,82.29,19.0642571]
[1770820314003,19.0642571,82.33,82.293,4.27546924]
[1770820314208,51.9,82.338,82.31,19.0642571]
[1770820314385,19.0642571,82.33,82.294,12.15155418]
[1770820314585,51.92,82.336,82.31,19.0642571]
[1770820314906,51.9,82.363,82.331,4.27546924]
[1770820315105,12.14034803,82.37,82.34,19.0642571]
[1770820315289,1e-08,82.36,82.35,19.0642571]
[1770820315606,19.0642571,82.39,82.351,4.27546924]
[1770820315794,19.0642571,82.36,82.298,4.27546924]
[1770820315996,19.0642571,82.34,82.301,4.27546924]
[1770820316304,19.0642571,82.34,82.296,4.27546924]
[1770820316508,4.61729252,82.376,82.331,4.27546924]
[1770820316901,19.0642571,82.37,82.331,4.27546924]
[1770820317212,42.48655603,82.379,82.331,4.27546924]
[1770820317409,0.2,82.38,82.371,4.27546924]
[1770820317709,0.22,82.434,82.371,4.27546924]
[1770820317907,19.0642571,82.41,82.371,4.27546924]
[1770820318094,4.23940095,82.419,82.38,19.0642571]
[1770820318295,19.0642571,82.43,82.39,4.27546924]
[1770820318495,19.0642571,82.4,82.362,4.27546924]
[1770820318694,19.0642571,82.4,82.321,48.58969783]
[1770820318695,19.0642571,82.38,82.34,19.0642571]
[1770820318901,0.14216157,82.379,82.34,19.0642571]
[1770820319102,4.23940095,82.379,82.33,19.0642571]
[1770820319316,51.84,82.389,82.303,30.37549301]
[1770820319317,0.14216157,82.359,82.323,12.14725316]
[1770820319493,0.14216157,82.369,82.34,23.33972634]
[1770820319694,0.14216157,82.369,82.337,12.14519389]
[1770820320011,0.14216157,82.369,82.341,4.27546924]
[1770820320315,0.14216157,82.349,82.31,19.0642571]
[1770820320498,0.14216157,82.349,82.267,48.62211492]
[1770820320499,19.0642571,82.33,82.288,12.15237918]
[1770820320693,0.14216157,82.329,82.296,4.27546924]
[1770820320894,4.23940095,82.346,82.279,4.27546924]
[1770820321214,19.0642571,82.29,82.237,4.27546924]
[1770820321510,0.14216157,82.269,82.237,4.27546924]
[1770820321715,4.61729252,82.247,82.188,4.27546924]
[1770820322018,0.14216157,82.229,82.194,4.27546924]
[1770820322311,0.14216157,82.209,82.17,19.0642571]
[1770820322494,0.14216157,82.189,82.151,16.44817559]
[1770820322799,0.14216157,82.189,82.145,4.27546924]
[1770820322994,0.14216157,82.189,82.151,4.27546924]
[1770820323209,0.14216157,82.189,82.16,19.0642571]
[1770820323406,0.14216157,82.179,82.137,4.27546924]
[1770820323613,0.14216157,82.149,82.121,16.45247919]
[1770820323920,0.14216157,82.169,82.13,19.0642571]
[1770820324094,0.14216157,82.169,82.141,4.27546924]
[1770820324294,0.14216157,82.159,82.094,4.27546924]
[1770820324599,0.14216157,82.129,82.08,23.33972634]
[1770820324808,0.14216157,82.109,82.07,19.0642571]
[1770820325003,0.14216157,82.109,82.067,7.7084381]
[1770820325197,0.14216157,82.089,82.067,7.7084381]
[1770820325398,0.14216157,82.109,82.067,7.7084381]
[1770820325703,0.14216157,82.099,82.067,7.7084381]
[1770820325898,4.19700694,82.142,82.08,19.0642571]
[1770820326105,12.17596707,82.129,82.09,19.0642571]
[1770820326304,19.0642571,82.12,82.081,4.27546924]
[1770820326602,51.84,82.143,82.101,4.27546924]
[1770820326808,12.17404007,82.142,82.111,4.27546924]
[1770820327004,4.61729252,82.157,82.12,19.0642571]
[1770820327218,19.0642571,82.16,82.12,19.0642571]
[1770820327421,12.16971338,82.172,82.14,19.0642571]
[1770820327622,12.16971338,82.172,82.131,4.27546924]
[1770820327623,19.0642571,82.16,82.114,4.27546924]
[1770820327922,19.0642571,82.17,82.131,4.27546924]
[1770820328105,12.1691512,82.175,82.14,31.23850694]
[1770820328422,19.0642571,82.17,82.134,12.17518477]
[1770820328733,4.19700694,82.139,82.07,4.27546924]
[1770820328903,12.1691512,82.175,82.039,43.06]
[1770820328904,0.14216157,82.129,82.091,4.27546924]
[1770820329203,0.14216157,82.119,82.08,19.0642571]
[1770820329397,0.14216157,82.119,82.084,12.18251695]
[1770820329620,0.14216157,82.119,82.081,4.27546924]
[1770820329621,0.14216157,82.119,82.09,19.0642571]
[1770820329822,4.19700694,82.16,82.101,4.27546924]
[1770820330011,4.19700694,82.16,82.088,12.18204853]
[1770820330012,30.42139719,82.179,82.131,4.27546924]
[1770820330212,4.61729252,82.166,82.131,4.27546924]
[1770820330405,19.0642571,82.18,82.131,4.27546924]
[1770820330603,19.0642571,82.17,82.131,16.4510771]
[1770820330803,70.8842571,82.18,82.131,16.4510771]
[1770820331020,19.0642571,82.19,82.15,19.0642571]
[1770820331202,51.82,82.195,82.16,19.0642571]
[1770820331407,19.0642571,82.19,82.151,4.27546924]
[1770820331915,51.82,82.195,82.16,19.0642571]
[1770820332115,51.82,82.195,82.151,4.27546924]
[1770820332321,19.0642571,82.23,82.181,4.27546924]
[1770820332521,4.19700694,82.239,82.181,4.27546924]
[1770820332729,4.61729252,82.227,82.181,4.27546924]
[1770820332912,19.0642571,82.22,82.181,4.27546924]
[1770820333104,19.0642571,82.22,82.191,4.27546924]
[1770820333310,19.0642571,82.21,82.17,19.0642571]
[1770820333519,19.0642571,82.22,82.181,4.27546924]
[1770820333715,51.86,82.238,82.171,16.44521282]
[1770820333716,0.14216157,82.209,82.171,16.44521282]
[1770820333914,19.0642571,82.22,82.181,4.27546924]
[1770820334307,0.14216157,82.209,82.181,4.27546924]
[1770820334507,12.16115968,82.229,82.19,19.0642571]
[1770820334716,4.61729252,82.226,82.19,19.0642571]
[1770820334916,63.98034954,82.235,82.2,19.0642571]
[1770820335424,19.0642571,82.21,82.172,4.27546924]
[1770820335620,0.14216157,82.209,82.172,4.27546924]
[1770820335822,0.14216157,82.189,82.157,4.27546924]
[1770820336141,0.14216157,82.189,82.159,12.1714957]
[1770820336427,4.61729252,82.213,82.15,19.0642571]
[1770820336428,51.84,82.22,82.182,4.27546924]
[1770820336618,12.15968092,82.239,82.2,19.0642571]
[1770820336827,12.15968092,82.239,82.164,48.68290282]
[1770820336828,19.0642571,82.22,82.179,12.16853754]
[1770820337027,0.14216157,82.219,82.18,19.0642571]
[1770820337331,51.84,82.225,82.175,4.27546924]
[1770820337332,0.14216157,82.209,82.175,4.27546924]
[1770820337539,0.14216157,82.209,82.159,4.27546924]
[1770820337540,0.14216157,82.199,82.159,4.27546924]
[1770820337840,0.14216157,82.199,82.16,19.0642571]
[1770820338010,4.19700694,82.188,82.13,4.27546924]
[1770820338205,0.14216157,82.179,82.15,4.27546924]
[1770820338409,0.14216157,82.198,82.161,16.44669403]
[1770820338720,0.14216157,82.198,82.17,19.0642571]
[1770820339109,0.14216157,82.198,82.171,4.27546924]
[1770820339311,19.0642571,82.22,82.18,19.0642571]
[1770820339512,12.16336168,82.215,82.171,4.27546924]
[1770820339709,12.16336168,82.215,82.181,4.27546924]
[1770820339908,0.14216157,82.226,82.19,19.0642571]
[1770820340109,12.16145548,82.227,82.161,42.59928676]
[1770820340110,4.19700694,82.21,82.165,4.27546924]
[1770820340329,12.30775969,82.199,82.161,12.17122479]
[1770820340532,12.30775969,82.199,82.17,19.0642571]
[1770820340725,12.30775969,82.199,82.15,19.0642571]
[1770820340911,19.0642571,82.18,82.132,4.49601233]
[1770820341105,0.14216157,82.169,82.132,4.49601233]
[1770820341331,19.0642571,82.15,82.1,4.49601233]
[1770820341632,0.14216157,82.139,82.101,4.49601233]
[1770820341837,0.14216157,82.119,82.084,4.49601233]
[1770820342329,0.14216157,82.119,82.1,19.0642571]
[1770820342525,4.33774689,82.173,82.111,4.49601233]
[1770820342721,19.0642571,82.17,82.13,19.0642571]
[1770820343108,19.0642571,82.16,82.121,4.49601233]
[1770820343320,19.0642571,82.15,82.11,19.0642571]
[1770820343526,19.0642571,82.14,82.103,4.49601233]
[1770820343723,19.0642571,82.14,82.095,12.18086548]
[1770820343928,19.0642571,82.14,82.095,12.18098331]
[1770820344137,19.0642571,82.14,82.101,4.49601233]
[1770820344311,4.61729252,82.146,82.11,19.0642571]
[1770820344512,0.14216157,82.148,82.12,19.0642571]
[1770820344711,12.17150371,82.16,82.13,19.0642571]
[1770820344920,0.14216157,82.149,82.121,4.49601233]
[1770820345127,0.14216157,82.149,82.111,12.17863623]
[1770820345320,0.14216157,82.149,82.112,4.49601233]
[1770820345827,0.14216157,82.139,82.107,4.49601233]
[1770820346220,0.14216157,82.139,82.1,19.0642571]
[1770820346620,0.14216157,82.129,82.08,4.25644007]
[1770820346815,0.14216157,82.129,82.1,19.0642571]
[1770820347011,0.14216157,82.129,82.095,12.18099634]
[1770820347226,0.14216157,82.129,82.075,42.94]
[1770820347227,0.14216157,82.129,82.091,4.25644007]
[1770820347424,0.14216157,82.129,82.111,4.25644007]
[1770820347935,0.14216157,82.129,82.101,12.1801196]
[1770820348128,0.14216157,82.129,82.095,12.18098267]
[1770820348323,0.14216157,82.129,82.091,4.25644007]
[1770820348529,0.14216157,82.129,82.059,4.25644007]
[1770820348530,4.19444882,82.118,82.059,4.25644007]
[1770820348731,19.0600863,82.09,82.059,4.25644007]
[1770820348917,0.14216157,82.079,82.045,4.25644007]
[1770820349333,0.14216157,82.079,82.022,42.96]
[1770820349634,0.14216157,82.059,82.012,4.25644007]
[1770820349835,0.14216157,82.039,82.01,0.2]
[1770820350040,0.14216157,82.019,81.97,4.35644007]
[1770820350245,0.14216157,82.009,81.97,23.41652637]
[1770820350537,0.14216157,82.009,81.97,0.1]
[1770820350538,0.14216157,81.999,81.97,0.1]
[1770820350714,0.14216157,81.989,81.97,0.1]
[1770820351047,12.19527067,81.999,81.911,55.20012911]
[1770820351048,4.75945409,81.977,81.911,4.25644007]
[1770820351217,0.14216157,81.979,81.911,4.25644007]
[1770820351218,0.14216157,81.939,81.911,4.25644007]
[1770820351819,19.0600863,81.99,81.931,4.25644007]
[1770820352021,12.19527067,81.999,81.96,19.0600863]
[1770820352226,12.18873029,82.043,81.991,4.25644007]
[1770820352421,12.18873029,82.043,81.96,4.61729252]
[1770820352422,12.18873029,82.043,82.01,19.0600863]
[1770820352736,19.0600863,82.02,81.972,4.25644007]
[1770820352927,42.66055603,82.043,82.01,19.0600863]
[1770820353133,12.18873029,82.043,82.01,19.0600863]
[1770820353316,4.01197928,82.096,82.031,4.25644007]
[1770820353523,19.0600863,82.08,82.031,4.25644007]
[1770820353730,0.14216157,82.079,82.031,4.25644007]
[1770820353930,0.14216157,82.076,82.031,4.25644007]
[1770820354129,0.14216157,82.076,82.04,19.0600863]
[1770820354328,42.63249569,82.097,82.051,4.25644007]
[1770820354533,48.68827405,82.156,82.081,4.25644007]
[1770820354738,19.0600863,82.11,82.07,19.0600863]
[1770820355041,48.68162955,82.167,82.011,4.25644007]
[1770820355042,19.0600863,82.08,82.011,4.25644007]
[1770820355341,19.0600863,82.04,81.99,19.0600863]
[1770820355536,0.14216157,82.029,82.009,4.25644007]
[1770820355836,19.0600863,82.2,82.02,19.0600863]
[1770820356042,0.14216157,82.066,82.021,4.25644007]
[1770820356233,0.14216157,82.064,82.031,4.25644007]
[1770820356433,17.04,82.068,82.04,19.0600863]
[1770820356638,12.1810098,82.095,82.053,4.25644007]
[1770820356939,0.14216157,82.059,82.011,4.25644007]
[1770820357138,46.64551359,82.095,82.04,19.0600863]
[1770820357436,46.64551359,82.095,82.041,4.25644007]
[1770820357437,0.14216157,82.079,82.041,4.25644007]
[1770820357639,19.0600863,82.11,82.071,4.25644007]
[1770820357844,19.0600863,82.12,82.08,19.0600863]
[1770820358138,51.9,82.119,82.07,23.31652637]
[1770820358440,4.01197928,82.133,82.07,19.0600863]
[1770820358735,12.32257789,82.099,82.067,12.18516577]
[1770820358931,12.1761766,82.128,82.091,4.25644007]
[1770820359141,0.14216157,82.119,82.077,4.25644007]
[1770820359320,0.14216157,82.099,82.067,12.18516577]
[1770820359524,0.14216157,82.099,82.071,4.25644007]
[1770820359726,4.61729252,82.115,82.08,19.0600863]
[1770820360036,0.14216157,82.114,82.08,23.31652637]
[1770820360341,0.14216157,82.109,82.07,19.0600863]
[1770820360639,12.17507761,82.135,82.092,4.25644007]
[1770820360848,4.61729252,82.127,82.085,12.18244125]
[1770820361144,0.14216157,82.109,82.071,4.25644007]
[1770820361312,0.14216157,82.109,82.07,19.0600863]
[1770820361520,0.14216157,82.109,82.074,12.18402827]
[1770820361928,0.14216157,82.109,82.074,12.18402002]
[1770820362131,0.14216157,82.109,82.07,23.31652637]
[1770820362436,0.14216157,82.099,82.06,19.0600863]
[1770820362629,0.14216157,82.102,82.071,4.25644007]
[1770820362937,19.0600863,82.13,82.091,4.25644007]
[1770820363140,12.17448471,82.139,82.1,19.0600863]
[1770820363340,12.17362305,82.145,82.101,4.25644007]
[1770820363529,19.0600863,82.14,82.097,4.25644007]
[1770820363731,19.0600863,82.13,82.097,4.25644007]
[1770820363917,0.14216157,82.129,82.091,4.25644007]
[1770820364118,4.61729252,82.137,82.068,42.92]
[1770820364119,12.17205384,82.156,82.121,4.25644007]
[1770820364324,0.14216157,82.155,82.121,4.25644007]
[1770820364620,4.01197928,82.202,82.141,4.25644007]
[1770820364823,19.0600863,82.17,82.133,4.25644007]
[1770820365429,0.14216157,82.159,82.133,4.25644007]
[1770820365945,4.61729252,82.177,82.141,4.25644007]
[1770820366145,19.0600863,82.16,82.12,19.0600863]
[1770820366340,51.9,82.159,82.121,4.25644007]
[1770820366537,0.14216157,82.155,82.104,4.25644007]
[1770820366726,12.31664628,82.139,82.104,4.25644007]
[1770820366924,0.14216157,82.129,82.104,4.25644007]
[1770820367239,0.14216157,82.129,82.098,12.18050873]
[1770820367240,19.0600863,82.14,82.106,4.25644007]
[1770820367443,0.14216157,82.143,82.111,4.25644007]
[1770820367846,0.14216157,82.143,82.075,97.47144958]
[1770820367847,0.14216157,82.129,82.1,19.0600863]
[1770820368048,0.14216157,82.159,82.121,4.25644007]
[1770820368345,19.0600863,82.19,82.141,4.25644007]
[1770820368552,12.16559812,82.199,82.16,19.0600863]
[1770820368854,19.0600863,82.19,82.151,4.25644007]
[1770820369059,19.0600863,82.18,82.142,4.25644007]
[1770820369227,19.0600863,82.19,82.15,23.31652637]
[1770820369423,19.0600863,82.18,82.136,4.25644007]
[1770820369647,19.0600863,82.18,82.14,19.0600863]
[1770820369648,51.88,82.179,82.14,19.0600863]
[1770820370146,51.88,82.179,82.105,48.71795494]
[1770820370147,0.14216157,82.149,82.112,12.17842254]
[1770820370327,0.14216157,82.139,82.096,4.25644007]
[1770820370527,51.88,82.148,82.082,4.45494174]
[1770820370528,0.14216157,82.109,82.082,4.45494174]
[1770820370947,0.14216157,82.109,82.083,4.45494174]
[1770820371133,0.14216157,82.109,82.091,4.45494174]
[1770820371333,0.14216157,82.109,82.076,4.45494174]
[1770820371545,0.14216157,82.109,82.014,48.7715954]
[1770820371546,19.0600863,82.12,82.083,12.18279059]
[1770820371736,19.0600863,82.11,82.083,12.18279059]
[1770820371941,19.0600863,82.11,82.077,4.45494174]
[1770820371942,0.14216157,82.109,82.077,4.45494174]
[1770820372141,0.14216157,82.109,82.081,12.18306439]
[1770820372449,0.14216157,82.099,82.066,16.64025483]
[1770820372642,0.14216157,82.099,82.066,4.45494174]
[1770820372948,12.32257789,82.099,82.071,4.45494174]
[1770820373331,0.14216157,82.099,82.071,4.45494174]
[1770820373746,12.32257789,82.099,82.071,4.45494174]
[1770820373945,12.32257789,82.099,82.066,12.18527885]
[1770820374142,12.32257789,82.099,82.066,16.64022059]
[1770820374350,12.32257789,82.099,82.066,4.45494174]
[1770820374555,0.14216157,82.104,82.071,4.45494174]
[1770820374849,48.68477649,82.162,82.07,19.0600863]
[1770820374850,12.17137293,82.16,82.091,4.45494174]
[1770820375151,12.17068654,82.165,82.13,19.0600863]
[1770820375334,0.14216157,82.164,82.121,4.45494174]
[1770820375534,19.0600863,82.15,82.081,4.45494174]
[1770820375841,19.0600863,82.15,82.072,42.64548201]
[1770820375842,51.86,82.15,82.12,19.0600863]
[1770820376034,51.86,82.153,82.12,23.51502804]
[1770820376229,51.86,82.153,82.131,4.45494174]
[1770820376429,19.0600863,82.16,82.12,19.0600863]
[1770820376632,12.17448471,82.139,82.092,12.18145495]
[1770820376831,12.17448471,82.139,82.072,30.46105858]
[1770820376832,0.14216157,82.119,82.085,12.18242501]
[1770820377058,0.14216157,82.119,82.091,4.45494174]
[1770820377355,0.14216157,82.119,82.09,19.0600863]
[1770820377356,12.17448471,82.139,82.101,4.45494174]
[1770820378138,42.61069649,82.139,82.101,4.45494174]
[1770820378353,51.88,82.138,82.101,4.45494174]
[1770820378551,19.0600863,82.12,82.086,4.45494174]
[1770820378746,12.17759809,82.118,82.072,4.45494174]
[1770820378946,19.0600863,82.11,82.072,4.45494174]
[1770820379336,0.14216157,82.109,82.072,4.45494174]
[1770820379535,0.14216157,82.109,82.08,19.0600863]
[1770820379755,0.14216157,82.109,82.072,4.45494174]
[1770820380049,0.14216157,82.109,82.081,4.45494174]
[1770820380257,0.14216157,82.109,82.047,30.47016982]
[1770820380258,0.14216157,82.089,82.047,30.47016982]
[1770820380433,0.14216157,82.095,82.061,4.45494174]
[1770820380642,0.14216157,82.095,81.994,48.78388099]
[1770820380643,0.14216157,82.069,82.033,4.45494174]
[1770820380862,12.32703039,82.069,82.034,12.19006753]
[1770820381157,0.14216157,82.059,82.034,16.64500927]
[1770820381476,12.18486882,82.069,81.989,4.45494174]
[1770820381477,19.0600863,82.04,81.989,4.45494174]
[1770820381769,158.40329475,82.069,81.98,12.39797049]
[1770820381770,0.14216157,82.009,81.98,12.39797049]
[1770820381961,0.14216157,81.999,81.98,0.2]
[1770820382263,12.0,106.0,81.98,0.2]
[1770820382264,0.14216157,82.016,81.99,19.0600863]
[1770820382462,0.14216157,82.016,81.98,19.2600863]
[1770820382762,12.33743224,81.999,81.98,0.2]
[1770820383062,0.14216157,81.989,81.96,0.2]
[1770820383263,0.14216157,82.027,81.981,42.69281906]
[1770820383450,0.14216157,82.029,81.99,19.0600863]
[1770820383655,0.14216157,82.019,81.981,12.1979483]
[1770820384047,0.14216157,82.019,81.962,42.88]
[1770820384048,0.14216157,82.009,81.968,12.19986065]
[1770820384257,0.14216157,82.009,81.97,19.0600863]
[1770820384463,0.14216157,81.999,81.962,4.45494174]
[1770820384663,0.14216157,81.999,81.97,23.51502804]
[1770820384851,12.33594517,82.009,81.972,4.45494174]
[1770820385249,4.1946518,81.998,81.96,0.2]
[1770820385566,42.82040419,82.009,81.96,0.2]
[1770820385567,0.14216157,81.989,81.96,0.2]
[1770820385771,0.14216157,82.023,81.981,4.45494174]
[1770820385948,51.98,82.032,82.0,19.0600863]
[1770820386141,12.18932458,82.039,82.01,19.0600863]
[1770820386358,19.0600863,82.08,82.03,19.0600863]
[1770820386560,19.0600863,82.07,82.03,19.0600863]
[1770820386753,12.32703039,82.069,82.03,19.0600863]
[1770820386950,12.32703039,82.069,82.031,12.19051334]
[1770820387146,12.18486882,82.069,82.031,12.19051334]
[1770820387372,52.02,82.079,82.031,12.19051334]
[1770820387664,0.14216157,82.059,82.02,19.0600863]
[1770820387966,0.14216157,82.057,82.02,19.0600863]
[1770820388162,0.14216157,82.057,82.021,4.45494174]
[1770820388347,12.18353273,82.078,82.04,19.0600863]
[1770820388663,12.18353273,82.078,81.998,91.70141652]
[1770820388664,0.14216157,82.059,82.022,12.19170346]
[1770820388843,52.08,82.077,82.04,19.0600863]
[1770820388844,12.18416752,82.074,82.04,19.0600863]
[1770820389168,19.0600863,82.06,82.019,12.19217717]
[1770820389348,19.0600863,82.04,82.006,12.19414705]
[1770820389547,0.14216157,82.029,81.991,4.45494174]
[1770820390364,0.14216157,82.029,82.011,4.45494174]
[1770820390570,19.0600863,82.06,82.02,19.0600863]
[1770820390747,19.0600863,82.05,82.011,4.45494174]
[1770820391060,19.0600863,82.04,81.983,4.45494174]
[1770820391245,19.0600863,82.04,82.008,12.19392507]
[1770820391442,19.0600863,82.03,81.996,4.45494174]
[1770820391662,52.1,82.038,82.001,4.45494174]
[1770820392260,52.1,82.038,82.003,12.19464355]
[1770820392465,0.14216157,82.029,81.998,12.19528705]
[1770820392763,0.14216157,82.029,81.993,12.19603155]
[1770820392969,12.33297213,82.029,82.0,23.51502804]
[1770820393269,12.33297213,82.029,81.992,12.19631183]
[1770820393660,0.14216157,82.009,81.978,12.19826816]
[1770820393966,0.14216157,82.009,81.971,4.45494174]
[1770820394350,0.14216157,82.009,81.97,19.0600863]
[1770820394351,0.14216157,82.023,81.991,4.45494174]
[1770820394872,0.14216157,81.999,81.965,4.45494174]
[1770820395170,0.14216157,81.997,81.966,12.20018056]
[1770820395357,12.33594517,82.009,81.971,4.45494174]
[1770820395557,0.14216157,81.989,81.96,0.2]
[1770820395763,0.14216157,81.989,81.962,12.20064154]
[1770820396151,0.14216157,81.989,81.96,0.2]
[1770820396473,42.67824262,82.009,81.96,0.2]
[1770820396474,0.14216157,81.968,81.96,1e-08]
[1770820396658,52.30216157,81.968,81.96,1e-08]
[1770820396963,52.16,81.968,81.96,1e-08]
[1770820397169,12.34219329,81.967,81.96,1e-08]
[1770820397370,0.14216157,81.983,81.96,4.45494175]
[1770820397567,19.20224787,81.99,81.96,1e-08]
[1770820397977,0.14216157,81.989,81.96,1e-08]
[1770820398167,52.2,81.991,81.961,4.45494174]
[1770820398761,19.20224787,81.99,81.96,1e-08]
[1770820398965,31.39885721,81.99,81.96,1e-08]
[1770820399254,0.14216157,81.988,81.96,1e-08]
[1770820399677,12.18947317,82.038,81.981,4.45494174]
[1770820399859,19.0600863,82.03,81.991,4.45494174]
[1770820400058,52.24,82.037,82.0,23.51502804]
[1770820400371,0.14216157,82.019,81.99,19.0600863]
[1770820400575,4.61729252,82.034,82.0,19.0600863]
[1770820400874,4.61729252,82.034,81.961,42.94]
[1770820400875,52.26,82.047,82.011,4.16186853]
[1770820401174,12.18828462,82.046,82.02,19.0600863]
[1770820401375,54.92,82.069,82.012,12.19333756]
[1770820401376,19.0600863,82.07,82.031,4.16186853]
[1770820401575,48.70684276,82.124,82.05,19.0600863]
[1770820401576,12.18190013,82.089,82.05,19.0600863]
[1770820401760,19.0600863,82.08,82.041,4.16186853]
[1770820401956,0.14216157,82.049,82.012,12.19333756]
[1770820402176,0.14216157,82.049,82.01,19.0600863]
[1770820402384,0.14216157,82.049,81.999,4.16186853]
[1770820402385,4.54049775,82.049,82.001,4.16186853]
[1770820402556,4.39833618,82.029,81.972,4.16186853]
[1770820402756,42.62,82.029,82.011,4.16186853]
[1770820402985,0.14216157,82.032,82.01,19.0600863]
[1770820403153,0.14216157,82.029,81.99,19.0600863]
[1770820403354,0.14216157,82.029,82.0,19.0600863]
[1770820403586,0.14216157,82.027,82.0,19.0600863]
[1770820403967,0.14216157,82.027,81.999,12.19516]
[1770820403968,0.14216157,82.027,81.997,4.16186853]
[1770820404164,0.14216157,82.027,81.99,19.0600863]
[1770820404362,0.14216157,82.019,81.98,19.0600863]
[1770820404558,52.28,82.028,82.001,12.19491104]
[1770820404761,42.66318023,82.038,82.01,19.0600863]
[1770820404762,0.14216157,82.037,82.01,19.0600863]
[1770820404962,52.28,82.041,82.02,19.0600863]
[1770820405173,12.18917601,82.04,82.012,16.35512424]
[1770820405375,0.14216157,82.039,82.0,19.0600863]
[1770820405581,12.18917601,82.04,82.01,19.0600863]
[1770820405782,31.24926231,82.04,82.001,12.19496989]
[1770820406086,0.14216157,82.039,82.004,12.19438321]
[1770820406391,0.14216157,82.039,82.005,12.19427144]
[1770820406578,0.14216157,82.039,81.998,4.16186853]
[1770820406579,0.14216157,82.039,82.011,12.19348623]
[1770820406883,0.14216157,82.039,82.007,12.1940629]
[1770820407084,0.14216157,82.039,82.01,31.25361089]
[1770820407264,12.18783897,82.049,82.021,4.15351156]
[1770820407459,12.18783897,82.049,82.01,31.25361089]
[1770820407661,0.14216157,82.048,82.011,12.19348623]
[1770820407861,0.14216157,82.048,82.011,4.15351156]
[1770820408059,0.14216157,82.048,82.02,19.0600863]
[1770820408263,23.3103897,82.06,82.011,16.34699779]
[1770820408264,30.46238656,82.069,82.03,19.0600863]
[1770820408460,52.36,82.07,82.031,4.15351156]
[1770820408680,52.36,82.07,82.05,19.0600863]
[1770820408885,5.36086188,82.11,82.011,42.67720182]
[1770820408886,12.17893288,82.109,82.061,4.15351156]
[1770820409085,12.17893288,82.109,82.03,4.61729252]
[1770820409086,19.07220233,82.09,82.05,19.07220233]
[1770820409270,52.38,82.089,82.05,19.07220233]
[1770820409680,4.2503034,82.069,82.019,4.15351156]
[1770820409886,52.50216157,82.068,82.03,19.07220233]
[1770820410184,0.14216157,82.068,82.031,4.15351156]
[1770820410364,4.39246497,82.066,82.018,4.15351156]
[1770820410561,19.07220233,82.06,82.02,19.07220233]
[1770820410783,0.14216157,82.059,82.03,19.07220233]
[1770820410993,0.14216157,82.066,82.041,4.15351156]
[1770820411284,52.32,82.079,82.06,19.07220233]
[1770820411782,12.17997125,82.102,82.07,19.07220233]
[1770820412082,52.34,82.11,82.07,19.07220233]
[1770820412445,12.17744979,82.119,82.09,19.07220233]
[1770820412889,12.17626359,82.127,82.101,4.15351156]
[1770820413094,12.17626359,82.127,82.09,19.07220233]
[1770820413391,19.07220233,82.13,82.09,19.07220233]
[1770820413589,19.07220233,82.13,82.091,12.18160334]
[1770820413778,42.614847,82.131,82.053,42.84]
[1770820413779,4.2503034,82.109,82.054,4.15351156]
[1770820413973,52.32,82.112,82.09,19.07220233]
[1770820414169,0.14216157,82.111,82.082,4.15351156]
[1770820414584,0.14216157,82.111,82.09,19.07220233]
[1770820414893,0.14216157,82.109,82.071,4.15351156]
[1770820415087,0.14216157,82.109,82.081,4.15351156]
[1770820415284,0.14216157,82.109,82.071,4.15351156]
[1770820415476,0.14216157,82.107,82.074,12.18410259]
[1770820415673,0.14216157,82.107,82.074,16.33761415]
[1770820415869,0.14216157,82.107,82.074,4.15351156]
[1770820416089,0.14216157,82.105,82.061,4.15351156]
[1770820416390,0.14216157,82.105,82.07,12.23090739]
[1770820416768,0.14216157,82.105,82.063,12.18570165]
[1770820416986,4.2503034,82.099,82.06,12.23090739]
[1770820417188,0.14216157,82.097,82.06,12.23090739]
[1770820417383,4.39246497,82.097,82.052,12.18739336]
[1770820417689,0.14216157,82.097,82.061,4.15351156]
[1770820417872,0.14216157,82.095,82.061,4.15351156]
[1770820418084,0.14216157,82.095,82.026,91.5249346]
[1770820418085,4.2503034,82.079,82.027,4.15351156]
[1770820418396,12.23090739,82.07,82.031,4.15351156]
[1770820418577,0.14216157,82.059,82.021,12.19189061]
[1770820418783,0.14216157,82.059,81.961,48.80323418]
[1770820418784,4.39246497,82.049,82.001,4.15351156]
[1770820418991,0.14216157,82.039,82.001,4.15351156]
[1770820419173,0.14216157,82.039,81.989,12.1967581]
[1770820419174,12.19124891,82.027,81.989,12.1967581]
[1770820419371,0.14216157,82.026,81.987,4.15351156]
[1770820419596,0.14216157,82.026,81.96,1e-08]
[1770820419597,0.14216157,82.011,81.966,4.15351156]
[1770820419774,52.4,82.01,81.991,4.15351156]
[1770820419974,0.14216157,82.017,81.991,4.15351156]
[1770820420469,52.42,82.018,82.0,12.23090739]
[1770820420679,52.42,82.018,81.974,4.15351156]
[1770820420877,4.39246497,82.009,81.968,12.19976069]
[1770820421094,4.39246497,82.009,81.978,12.19837949]
[1770820421294,0.14216157,82.007,81.97,12.23090739]
[1770820421597,0.14216157,81.999,81.962,4.15351156]